lending/lending_fUSD_20240110
["ID","MTS","AMOUNT","RATE_DAILY","PERIOD"]
[310997725,1704846639853,-425.77,0.00034703,2]
[310997727,1704846639862,-150.41,0.00034711,2]
[310997729,1704846639871,-40335.2218,0.00034898,2]
[310997731,1704846639881,-715.1035,0.00034898,2]
[310997733,1704846639890,-27512.3802,0.000349,2]
[310997735,1704846639900,-150.41,0.0003491,2]
[310997737,1704846639909,-827.46585316,0.0003498,3]
[310997739,1704846639919,-292.5,0.0003498,3]
[310997741,1704846639928,-692.97733532,0.0003498,3]
[310997743,1704846639937,-9620.12645151,0.00034997,2]
[310997745,1704846639946,-16404.83531666,0.00035,2]
[310997747,1704846639955,-1294.73104424,0.00035,7]
[310997749,1704846639964,-617.90544107,0.00035,4]
[310997751,1704846639974,-155.0,0.00035,2]
[310997753,1704846639983,-446.78845482,0.00035,4]
[310997755,1704846639993,-1345.27630067,0.00035,14]
[310997758,1704846640003,-180774.66063044,0.00035,4]
[310997760,1704846640012,-155.33912068,0.00035,3]
[310997763,1704846640021,-2500.0,0.00035,2]
[310997766,1704846640031,-450.0,0.0003502,3]
[310997768,1704846640040,-150.1,0.00035106,2]
[310997770,1704846640050,-167.12,0.00035106,2]
[310997772,1704846640058,-150.41,0.00035108,2]
[310997774,1704846640068,-153.84,0.00035134,2]
[310997776,1704846640077,-4608.98,0.0003522,10]
[310997778,1704846640087,-4259.0,0.0003523,30]
[310997780,1704846640096,-4259.0,0.0003523,60]
[310997782,1704846640106,-150.41,0.00035306,2]
[310997783,1704846640115,-150.41,0.00035505,2]
[310997785,1704846640125,-207.0,0.00035565,2]
[310997786,1704846640134,-163.01,0.0003557,2]
[310997789,1704846640145,-967.152292,0.00035616,2]
[310997790,1704846640155,-311.91670185,0.00035616,2]
[310997793,1704846640165,-152.08,0.00035616,2]
[310997795,1704846640175,-150.41,0.00035703,2]
[310997796,1704846640184,-3189.66,0.00035798,2]
[310997798,1704846640194,-967.152292,0.00035865,2]
[310997800,1704846640204,-150.41,0.00035901,2]
[310997802,1704846640213,-155.79139109,0.00035924,2]
[310997804,1704846640223,-155.88399717,0.00035997,2]
[310997806,1704846640233,-92188.34675349,0.00036,4]
[310997808,1704846640242,-600.0,0.00036,37]
[310997810,1704846640254,-1234.4011,0.00036048,6]
[310997812,1704846640266,-153.84,0.00036058,2]
[310997814,1704846640275,-161.72403565,0.00036089,2]
[310997816,1704846640285,-161.72403562,0.00036089,2]
[310997818,1704846640294,-161.72403562,0.00036089,2]
[310997820,1704846640304,-161.72403562,0.00036089,2]
[310997822,1704846640314,-161.72403562,0.00036089,2]
[310997824,1704846640323,-161.72403562,0.00036089,2]
[310997826,1704846640332,-161.72403562,0.00036089,2]
[310997828,1704846640342,-150.41,0.000361,2]
[310997830,1704846640351,-1944.977054,0.000361,23]
[310997832,1704846640362,-967.152292,0.00036114,2]
[310997834,1704846640371,-1234.4011,0.00036148,4]
[310997836,1704846640381,-1000.0,0.000362,2]
[310997838,1704846640390,-151.38524979,0.0003623,30]
[310997840,1704846640400,-389.2,0.00036242,2]
[310997842,1704846640409,-1234.4011,0.00036248,6]
[310997843,1704846640419,-150.41,0.00036298,2]
[310997844,1704846640428,-1234.4011,0.00036348,4]
[310997845,1704846640438,-967.152292,0.00036363,2]
[310997846,1704846640447,-10959.74636834,0.000364,2]
[310997847,1704846640456,-10959.74636819,0.000364,2]
[310997848,1704846640466,-10959.74636819,0.000364,2]
[310997849,1704846640475,-10959.74636819,0.000364,2]
[310997850,1704846640485,-10959.74636819,0.000364,2]
[310997851,1704846640495,-10959.74636819,0.000364,2]
[310997852,1704846640508,-10959.74636819,0.000364,2]
[310997853,1704846640517,-10959.74636819,0.000364,2]
[310997854,1704846640527,-10959.74636819,0.000364,2]
[310997855,1704846640536,-10959.74636819,0.000364,2]
[310997856,1704846640546,-10959.74636819,0.000364,2]
[310997857,1704846640555,-10959.74636819,0.000364,2]
[310997858,1704846640565,-10959.74636819,0.000364,2]
[310997860,1704846640574,-10959.74636819,0.000364,2]
[310997863,1704846640584,-10959.74636819,0.000364,2]
[310997866,1704846640593,-10959.74636819,0.000364,2]
[310997869,1704846640603,-166.82,0.00036438,2]
[310997872,1704846640613,-166.82,0.00036438,46]
[310997875,1704846640623,-166.82,0.00036438,90]
[310997877,1704846640634,-1234.4011,0.00036448,6]
[310997879,1704846640643,-197.63,0.00036468,2]
[310997882,1704846640653,-150.41,0.00036497,2]
[310997884,1704846640663,-207.0,0.00036543,2]
[310997886,1704846640672,-1234.4011,0.00036548,4]
[310997888,1704846640682,-1500.0,0.000366,23]
[310997890,1704846640692,-967.152292,0.00036612,2]
[310997892,1704846640701,-790.81,0.00036613,15]
[310997894,1704846640711,-1234.4011,0.00036648,6]
[310997896,1704846640720,-150.41,0.00036695,2]
[310997898,1704846640730,-1234.4011,0.00036748,4]
[310997900,1704846640740,-1234.4011,0.00036848,6]
[310997902,1704846640751,-967.152292,0.00036861,2]
[310997904,1704846640761,-150.41,0.00036893,2]
[310997906,1704846640770,-1234.4011,0.00036948,4]
[310997908,1704846640779,-153.84,0.00036983,2]
[310997910,1704846640789,-1000.0,0.00036986,2]
[310997912,1704846640798,-667.33870884,0.00037,7]
[310997914,1704846640807,-209.51916391,0.00037,30]
[310997916,1704846640818,-345.91472599,0.00037,120]
[310997918,1704846640830,-1200.0,0.00037,38]
[310997920,1704846640840,-1027.43,0.00037,3]
[310997922,1704846640849,-1027.43,0.00037,3]
[310997924,1704846640858,-1027.43,0.00037,3]
[310997926,1704846640868,-1027.43,0.00037,3]
[310997928,1704846640877,-1027.43,0.00037,3]
[310997931,1704846640888,-1027.43,0.00037,3]
[310997933,1704846640897,-1027.43,0.00037,3]
[310997935,1704846640906,-1027.43,0.00037,3]
[310997937,1704846640916,-1027.43,0.00037,3]
[310997938,1704846640925,-1027.43,0.00037,3]
[310997940,1704846640934,-1027.43,0.00037,3]
[310997942,1704846640943,-1027.43,0.00037,3]
[310997945,1704846640953,-1027.43,0.00037,3]
[310997947,1704846640962,-1027.43,0.00037,3]
[310997949,1704846640972,-1027.43,0.00037,3]
[310997951,1704846640981,-1027.43,0.00037,3]
[310997953,1704846640990,-1027.43,0.00037,3]
[310997955,1704846641001,-1027.43,0.00037,3]
[310997957,1704846641010,-1027.43,0.00037,3]
[310997959,1704846641020,-1027.43,0.00037,3]
[310997961,1704846641029,-351.8,0.00037,2]
[310997963,1704846641039,-500.0,0.00037,2]
[310997965,1704846641048,-247.51821648,0.00037,5]
[310997967,1704846641057,-157.32,0.00037,3]
[310997968,1704846641066,-157.32,0.00037,3]
[310997970,1704846641076,-157.32,0.00037,3]
[310997972,1704846641085,-157.32,0.00037,3]
[310997974,1704846641095,-171.04,0.00037024,2]
[310997976,1704846641105,-1234.4011,0.00037048,6]
[310997978,1704846641115,-3189.66,0.00037075,2]
[310997980,1704846641125,-150.41,0.00037092,2]
[310997982,1704846641134,-1500.0,0.000371,23]
[310997984,1704846641144,-276.431819,0.000371,2]
[310997986,1704846641153,-967.152292,0.0003711,2]
[310997989,1704846641163,-3180.6266193,0.00037146,30]
[310997991,1704846641172,-1937.236888,0.00037146,30]
[310997993,1704846641182,-1287.64018922,0.00037146,30]
[310997995,1704846641194,-304.856372,0.00037146,30]
[310997997,1704846641203,-1965.399855,0.00037146,30]
[310997999,1704846641213,-175.40181905,0.00037146,120]
[310998001,1704846641223,-150.0,0.00037146,30]
[310998003,1704846641233,-150.0,0.00037146,30]
[310998005,1704846641243,-150.0,0.00037146,30]
[310998007,1704846641254,-1234.4011,0.00037148,4]
[310998009,1704846641263,-150.0,0.00037166,2]
[310998011,1704846641273,-10959.74636819,0.00037199,2]
[310998013,1704846641282,-151.0,0.00037242,2]
[310998015,1704846641292,-250.49088,0.00037242,2]
[310998017,1704846641302,-1234.4011,0.00037248,6]
[310998018,1704846641312,-1785.07,0.00037252,2]
[310998019,1704846641321,-203.0,0.00037255,2]
[310998020,1704846641331,-1000.0,0.0003726,4]
[310998021,1704846641340,-161.72403562,0.00037271,2]
[310998022,1704846641349,-150.0,0.00037305,2]
[310998023,1704846641359,-1234.4011,0.00037348,4]
[310998024,1704846641368,-967.152292,0.00037358,2]
[310998025,1704846641377,-871.22,0.00037377,2]
[310998026,1704846641387,-150.0,0.0003739,2]
[310998027,1704846641396,-150.0,0.0003742,2]
[310998028,1704846641407,-162.50567824,0.00037434,2]
[310998029,1704846641417,-150.0,0.00037442,2]
[310998030,1704846641426,-1234.4011,0.00037448,6]
[310998031,1704846641437,-150.0,0.00037475,2]
[310998032,1704846641446,-450.0,0.000375,3]
[310998033,1704846641455,-150.0,0.00037517,2]
[310998034,1704846641465,-207.0,0.00037522,2]
[310998035,1704846641474,-3176.37921479,0.00037527,10]
[310998036,1704846641484,-1000.0,0.00037534,6]
[310998037,1704846641494,-1234.4011,0.00037548,4]
[310998039,1704846641505,-151.16643292,0.00037561,7]
[310998041,1704846641515,-150.0,0.0003759,2]
[310998042,1704846641524,-150.0,0.00037604,2]
[310998043,1704846641534,-967.152292,0.00037607,2]
[310998044,1704846641543,-150.0,0.0003761,2]
[310998045,1704846641552,-150.0,0.00037631,2]
[310998046,1704846641562,-1234.4011,0.00037648,6]
[310998047,1704846641571,-300.0,0.00037655,2]
[310998048,1704846641580,-163.01,0.00037669,2]
[310998049,1704846641590,-155.46490209,0.00037715,7]
[310998050,1704846641599,-13516.25652628,0.00037729,7]
[310998051,1704846641608,-5779.52393461,0.00037729,7]
[310998052,1704846641618,-196.64305998,0.00037729,4]
[310998053,1704846641627,-1234.4011,0.00037748,6]
[310998054,1704846641637,-150.0,0.00037756,2]
[310998055,1704846641646,-150.0,0.0003776,2]
[310998056,1704846641656,-155.79139109,0.000378,2]
[310998057,1704846641665,-1000.0,0.00037808,10]
[310998058,1704846641674,-1234.4011,0.00037848,6]
[310998059,1704846641684,-967.152292,0.00037856,2]
[310998060,1704846641693,-3176.37921475,0.00037865,11]
[310998061,1704846641703,-302.0,0.00037868,4]
[310998062,1704846641712,-416.0,0.0003789,3]
[310998063,1704846641722,-73718.19187787,0.00037898,7]
[310998064,1704846641731,-176.25,0.00037899,2]
[310998065,1704846641741,-176.25,0.00037899,2]
[310998066,1704846641751,-176.25,0.00037899,2]
[310998067,1704846641761,-530.29226633,0.00037899,2]
[310998068,1704846641770,-150.0,0.00037899,2]
[310998069,1704846641780,-300.0,0.00037899,7]
[310998070,1704846641789,-450.0,0.00037899,12]
[310998071,1704846641799,-600.0,0.00037899,17]
[310998072,1704846641808,-585.04034752,0.00037899,22]
[310998073,1704846641818,-425.77,0.000379,2]
[310998074,1704846641827,-621.95549523,0.000379,2]
[310998075,1704846641840,-671577.448038,0.000379,2]
[310998076,1704846641850,-153.84,0.00037907,2]
[310998077,1704846641859,-150.0,0.00037926,2]
[310998078,1704846641869,-1234.4011,0.00037948,6]
[310998079,1704846641879,-155.88399717,0.00037997,2]
[310998080,1704846641888,-460.03063231,0.00037999,2]
[310998081,1704846641898,-341.52838613,0.00038,2]
[310998082,1704846641908,-1658.77813122,0.00038,4]
[310998083,1704846641917,-1200.0,0.00038,39]
[310998084,1704846641928,-1200.0,0.00038,39]
[310998085,1704846641937,-5000.0,0.00038,30]
[310998086,1704846641947,-5300.0,0.00038,30]
[310998087,1704846641957,-765.9326413,0.00038,2]
[310998088,1704846641967,-765.9326413,0.00038,2]
[310998089,1704846641977,-765.9326413,0.00038,2]
[310998090,1704846641987,-765.9326413,0.00038,2]
[310998091,1704846641997,-765.9326413,0.00038,2]
[310998092,1704846642012,-1234.4011,0.00038048,6]
[310998093,1704846642022,-1000.0,0.00038082,12]
[310998094,1704846642032,-150.0,0.0003809,2]
[310998095,1704846642043,-10959.74636819,0.00038099,2]
[310998096,1704846642053,-967.152292,0.00038105,2]
[310998097,1704846642064,-150.0,0.00038111,2]
[310998098,1704846642073,-1234.4011,0.00038148,6]
[310998099,1704846642083,-249434.68248848,0.00038151,12]
[310998100,1704846642092,-13463.69110452,0.00038151,11]
[310998101,1704846642103,-896.84403555,0.00038151,10]
[310998102,1704846642113,-150.0,0.00038193,2]
[310998103,1704846642122,-3176.37921475,0.00038202,11]
[310998104,1704846642131,-1234.4011,0.00038248,8]
[310998105,1704846642141,-150.0,0.00038293,2]
[310998106,1704846642150,-150.0,0.00038303,2]
[310998107,1704846642160,-1234.4011,0.00038348,8]
[310998108,1704846642169,-3189.66,0.00038352,2]
[310998109,1704846642179,-967.152292,0.00038354,2]
[310998110,1704846642189,-666.0,0.00038356,2]
[310998111,1704846642199,-1000.0,0.00038356,14]
[310998112,1704846642208,-165.3229978,0.00038356,7]
[310998113,1704846642217,-161.93002219,0.00038356,7]
[310998114,1704846642227,-2500.0,0.00038356,14]
[310998115,1704846642236,-203.0,0.00038392,4]
[310998116,1704846642246,-150.0,0.00038396,2]
[310998117,1704846642260,-8000.0,0.000384,2]
[310998118,1704846642270,-1234.4011,0.00038448,8]
[310998119,1704846642279,-150.0,0.0003845,2]
[310998120,1704846642288,-150.0,0.00038454,2]
[310998121,1704846642298,-150.0,0.00038476,2]
[310998122,1704846642307,-150.0,0.00038487,2]
[310998123,1704846642317,-300.0,0.00038489,2]
[310998124,1704846642326,-300.0,0.00038489,2]
[310998125,1704846642335,-300.0,0.00038489,2]
[310998126,1704846642345,-300.0,0.00038489,2]
[310998127,1704846642354,-305.84192038,0.00038489,2]
[310998128,1704846642364,-44827.28484198,0.000385,7]
[310998129,1704846642373,-8750.0,0.000385,5]
[310998130,1704846642382,-207.0,0.000385,2]
[310998131,1704846642392,-604.0,0.00038505,7]
[310998132,1704846642401,-389.2,0.00038506,2]
[310998133,1704846642410,-3176.37921475,0.0003854,12]
[310998134,1704846642419,-1234.4011,0.00038548,8]
[310998135,1704846642428,-8750.0,0.00038581,5]
[310998136,1704846642437,-150.0,0.00038589,2]
[310998137,1704846642447,-150.0,0.00038591,2]
[310998138,1704846642456,-967.152292,0.00038603,2]
[310998139,1704846642857,-1000.0,0.0003863,16]
[310998140,1704846642879,-1234.4011,0.00038648,8]
[310998141,1704846642889,-8750.0,0.00038663,5]
[310998142,1704846642898,-150.0,0.00038686,2]
[310998143,1704846642907,-150.0,0.00038701,7]
[310998144,1704846642916,-8750.0,0.00038744,5]
[310998145,1704846642926,-1234.4011,0.00038748,8]
[310998146,1704846642936,-150.0,0.00038748,2]
[310998147,1704846642946,-150.0,0.00038777,2]
[310998148,1704846642955,-152.0,0.00038795,3]
[310998149,1704846642964,-150.0,0.00038796,2]
[310998150,1704846642974,-22875.84468121,0.000388,4]
[310998151,1704846642983,-14987.45308177,0.000388,30]
[310998152,1704846642993,-150.0,0.000388,2]
[310998153,1704846643005,-1000.0,0.000388,2]
[310998154,1704846643014,-8750.0,0.00038825,5]
[310998155,1704846643025,-153.84,0.00038832,2]
[310998156,1704846643034,-1234.4011,0.00038848,6]
[310998157,1704846643043,-967.152292,0.00038852,2]
[310998158,1704846643053,-3176.37921475,0.00038878,12]
[310998159,1704846643063,-808.0,0.000389,2]
[310998160,1704846643072,-1000.0,0.00038904,18]
[310998162,1704846643082,-8750.0,0.00038906,5]
[310998163,1704846643092,-1234.4011,0.00038948,8]
[310998164,1704846643102,-150.0,0.00038952,2]
[310998165,1704846643112,-281.54706286,0.0003898,2]
[310998167,1704846643121,-194.03,0.00038982,2]
[310998168,1704846643131,-8750.0,0.00038988,5]
[310998169,1704846643142,-157.46353718,0.00038988,7]
[310998171,1704846643152,-197.15598527,0.00038999,7]
[310998173,1704846643162,-419.57847085,0.00038999,4]
[310998174,1704846643172,-500.0,0.00038999,4]
[310998175,1704846643181,-246.37264118,0.00038999,4]
[310998176,1704846643191,-500.0,0.00038999,4]
[310998177,1704846643200,-152.87184978,0.00038999,4]
[310998178,1704846643209,-453.6422084,0.00038999,4]
[310998179,1704846643219,-604.70520726,0.00038999,4]
[310998180,1704846643228,-500.0,0.00038999,4]
[310998181,1704846643238,-500.0,0.00038999,4]
[310998182,1704846643247,-500.0,0.00038999,4]
[310998184,1704846643259,-10959.74636819,0.00038999,2]
[310998186,1704846643269,-328.23454993,0.00039,4]
[310998187,1704846643279,-196.69246782,0.00039,4]
[310998188,1704846643288,-1200.0,0.00039,40]
[310998189,1704846643298,-1000.0,0.00039,7]
[310998190,1704846643307,-150.0,0.00039034,2]
[310998191,1704846643316,-150.0,0.00039046,7]
[310998192,1704846643326,-1234.4011,0.00039048,6]
[310998193,1704846643335,-150.0,0.00039067,2]
[310998194,1704846643345,-8750.0,0.00039069,5]
[310998195,1704846643355,-967.152292,0.000391,2]
[310998196,1704846643364,-500.0,0.000391,3]
[310998197,1704846643375,-1812.0,0.000391,7]
[310998198,1704846643385,-150.0,0.0003911,2]
[310998199,1704846643394,-2202.0289229,0.00039111,20]
[310998200,1704846643404,-1234.4011,0.00039148,8]
[310998201,1704846643413,-150.0,0.0003915,2]
[310998202,1704846643423,-8750.0,0.0003915,5]
[310998203,1704846643432,-166.99392,0.00039152,4]
[310998204,1704846643442,-150.0,0.00039162,2]
[310998205,1704846643452,-1000.0,0.00039178,20]
[310998206,1704846643461,-152.08,0.00039178,2]
[310998207,1704846643470,-150.0,0.00039201,2]
[310998208,1704846643480,-150.0,0.00039207,2]
[310998209,1704846643489,-3176.37921475,0.00039216,12]
[310998210,1704846643499,-8750.0,0.00039231,5]
[310998211,1704846643510,-150.0,0.00039232,2]
[310998212,1704846643520,-1234.4011,0.00039248,6]
[310998213,1704846643529,-162.50567824,0.00039256,2]
[310998214,1704846643539,-199.81,0.0003926,2]
[310998215,1704846643548,-150.0,0.00039269,2]
[310998216,1704846643558,-8750.0,0.00039313,5]
[310998217,1704846643567,-172.498787,0.00039324,2]
[310998218,1704846643576,-171.288262,0.00039324,2]
[310998219,1704846643586,-186.710325,0.00039324,2]
[310998220,1704846643596,-161.72403562,0.00039339,2]
[310998222,1704846643605,-157.46353718,0.00039341,7]
[310998224,1704846643616,-1234.4011,0.00039348,8]
[310998226,1704846643626,-967.152292,0.00039349,2]
[310998228,1704846643637,-150.0,0.00039392,7]
[310998229,1704846643647,-8750.0,0.00039394,5]
[310998230,1704846643657,-1234.4011,0.00039448,8]
[310998231,1704846643668,-1000.0,0.00039452,22]
[310998232,1704846643678,-8750.0,0.00039475,5]
[310998233,1704846643689,-207.0,0.00039479,2]
[310998234,1704846643700,-1208.0,0.00039479,30]
[310998235,1704846643710,-203.0,0.00039529,7]
[310998236,1704846643721,-1234.4011,0.00039548,10]
[310998237,1704846643733,-3176.37921475,0.00039553,13]
[310998238,1704846643743,-8750.0,0.00039556,5]
[310998239,1704846643758,-150.0,0.00039587,2]
[310998240,1704846643768,-967.152292,0.00039598,2]
[310998241,1704846643779,-1027.43,0.000396,3]
[310998242,1704846643789,-1027.43,0.000396,3]
[310998243,1704846643801,-1027.43,0.000396,3]
[310998244,1704846643812,-1027.43,0.000396,3]
[310998245,1704846643822,-1027.43,0.000396,3]
[310998246,1704846643832,-1027.43,0.000396,3]
[310998247,1704846643845,-1027.43,0.000396,3]
[310998248,1704846643854,-1027.43,0.000396,3]
[310998249,1704846643864,-1027.43,0.000396,3]
[310998250,1704846643874,-1027.43,0.000396,3]
[310998251,1704846643883,-1027.43,0.000396,3]
[310998252,1704846643893,-1027.43,0.000396,3]
[310998253,1704846643902,-1027.43,0.000396,3]
[310998254,1704846643912,-1027.43,0.000396,3]
[310998255,1704846643921,-1027.43,0.000396,3]
[310998256,1704846643930,-1027.43,0.000396,3]
[310998257,1704846643940,-1027.43,0.000396,3]
[310998258,1704846643950,-1027.43,0.000396,3]
[310998259,1704846643959,-1027.43,0.000396,3]
[310998260,1704846643970,-1027.43,0.000396,3]
[310998261,1704846643980,-157.32,0.000396,3]
[310998262,1704846643989,-157.32,0.000396,3]
[310998263,1704846643999,-157.32,0.000396,3]
[310998264,1704846644012,-157.32,0.000396,3]
[310998265,1704846644022,-34534.44780434,0.0003961,2]
[310998266,1704846644031,-150.0,0.00039627,2]
[310998267,1704846644041,-3189.66,0.0003963,2]
[310998268,1704846644051,-4721.6,0.00039637,5]
[310998269,1704846644060,-1234.4011,0.00039648,8]
[310998270,1704846644072,-1000.0,0.000397,7]
[310998271,1704846644082,-6117.0,0.000397,2]
[310998272,1704846644091,-1000.0,0.00039726,24]
[310998273,1704846644101,-150.0,0.00039734,2]
[310998274,1704846644111,-150.0,0.00039741,2]
[310998275,1704846644120,-1666.4011,0.00039748,10]
[310998276,1704846644130,-153.84,0.00039757,2]
[310998277,1704846644139,-150.0,0.00039765,2]
[310998278,1704846644149,-163.01,0.00039768,2]
[310998279,1704846644158,-150.0,0.00039773,2]
[310998280,1704846644167,-150.0,0.00039784,2]
[310998281,1704846644177,-150.53995043,0.00039792,8]
[310998282,1704846644188,-150.53995043,0.00039792,6]
[310998283,1704846644198,-150.53995043,0.00039792,5]
[310998284,1704846644207,-150.53995043,0.00039792,6]
[310998285,1704846644217,-150.53995043,0.00039792,5]
[310998286,1704846644227,-150.53995043,0.00039792,8]
[310998287,1704846644236,-150.53995043,0.00039792,7]
[310998288,1704846644245,-150.53995043,0.00039792,8]
[310998289,1704846644258,-150.53995043,0.00039792,4]
[310998290,1704846644267,-150.53995043,0.00039792,4]
[310998291,1704846644277,-6963.57907435,0.000398,15]
[310998292,1704846644286,-980.48609171,0.000398,4]
[310998293,1704846644295,-1000.0,0.000398,7]
[310998294,1704846644305,-1000.0,0.000398,2]
[310998295,1704846644314,-157.46353718,0.00039822,7]
[310998296,1704846644323,-150.0,0.00039838,2]
[310998297,1704846644333,-967.152292,0.00039847,2]
[310998298,1704846644342,-1666.4011,0.00039848,8]
[310998299,1704846644352,-150.0,0.00039879,2]
[310998300,1704846644361,-150.0,0.0003989,2]
[310998301,1704846644371,-3176.37921475,0.00039891,13]
[310998302,1704846644381,-10959.74636819,0.00039899,2]
[310998303,1704846644390,-275.7068033,0.000399,4]
[310998304,1704846644399,-2000.0,0.000399,4]
[310998305,1704846644409,-55555.0,0.000399,3]
[310998306,1704846644418,-939.21,0.0003991,2]
[310998307,1704846644427,-939.21,0.0003991,2]
[310998308,1704846644437,-939.21,0.0003991,2]
[310998309,1704846644446,-939.21,0.0003991,2]
[310998310,1704846644456,-225.49,0.0003991,2]
[310998311,1704846644465,-150.0,0.00039917,2]
[310998312,1704846644474,-150.0,0.00039942,2]
[310998313,1704846644484,-1666.4011,0.00039948,10]
[310998314,1704846644493,-615.96081656,0.0003998,3]
[310998315,1704846644505,-157.5,0.0003998,3]
[310998316,1704846644515,-615.4493344,0.0003998,3]
[310998317,1704846644525,-150.0,0.0003998,2]
[310998318,1704846644534,-200.0,0.0003999,7]
[310998319,1704846644543,-200.0,0.0003999,7]
[310998320,1704846644553,-499.0,0.0003999,3]
[310998321,1704846644563,-150.0,0.00039992,2]
[310998322,1704846644573,-1911.52063133,0.00039997,2]
[310998323,1704846644583,-1545.54073403,0.00039997,2]
[310998324,1704846644593,-326.49483348,0.00039997,4]
[310998325,1704846644603,-747.79138689,0.00039997,4]
[310998326,1704846644612,-429.78093367,0.00039997,4]
[310998327,1704846644622,-789.26505123,0.00039997,2]
[310998328,1704846644631,-155.88399717,0.00039997,2]
[310998329,1704846644641,-900.91294547,0.00039998,4]
[310998330,1704846644650,-5704.71434411,0.00039998,4]
[310998331,1704846644659,-1269.09997503,0.00039999,4]
[310998332,1704846644670,-402.17174956,0.00039999,4]
[310998333,1704846644679,-282.95863908,0.00039999,4]
[310998334,1704846644689,-269.41688063,0.00039999,2]
[310998335,1704846644698,-176.25,0.00039999,2]
[310998336,1704846644708,-150.0,0.00039999,2]
[310998337,1704846644718,-133.81438817,0.0004,4]
[310998338,1704846644727,-237993.44587954,0.0004,2]
[310998339,1704846644746,-205060.57657067,0.0004,2]
[310998340,1704846644757,-291.06936418,0.0004,2]
[310998341,1704846644767,-6808.57416919,0.0004,4]
[310998342,1704846644776,-617.44681957,0.0004,4]
[310998343,1704846644786,-249.26585059,0.0004,120]
[310998344,1704846644796,-6278.09481333,0.0004,4]
[310998345,1704846644805,-1057.70156371,0.0004,10]
[310998346,1704846644815,-272.7969938,0.0004,10]
[310998347,1704846644825,-303236.32,0.0004,2]
[310998348,1704846644837,-4437.00258978,0.0004,2]
[310998349,1704846644847,-1000.0,0.0004,26]
[310998350,1704846644857,-200.0,0.0004,2]
[310998351,1704846644867,-155.52355601,0.0004,4]
[310998352,1704846644876,-500.0,0.0004,5]
[310998353,1704846644886,-779.7243135,0.0004,4]
[310998354,1704846644896,-155.47934832,0.0004,4]
[310998355,1704846644906,-156.23166931,0.0004,4]
[310998356,1704846644916,-844.28526169,0.0004,5]
[310998357,1704846644926,-3707.04815542,0.0004,2]
[310998358,1704846644936,-2540.08452079,0.0004,4]
[310998359,1704846644946,-531.79797059,0.0004,4]
[310998360,1704846644956,-2000.0,0.0004,14]
[310998361,1704846644966,-255.0,0.0004,12]
[310998362,1704846644977,-156.14755448,0.0004,4]
[310998363,1704846644987,-2000.0,0.0004,7]
[310998364,1704846644997,-200.0,0.0004,7]
[310998365,1704846645011,-54276.05862357,0.0004,30]
[310998366,1704846645021,-255.0,0.0004,12]
[310998367,1704846645031,-1200.0,0.0004,41]
[310998368,1704846645042,-255.0,0.0004,12]
[310998369,1704846645052,-2000.0,0.0004,7]
[310998370,1704846645062,-200.0,0.0004,7]
[310998371,1704846645071,-2000.0,0.0004,30]
[310998372,1704846645081,-2000.0,0.0004,30]
[310998373,1704846645090,-2000.0,0.0004,30]
[310998374,1704846645099,-330.08426537,0.0004,30]
[310998375,1704846645109,-570.38282187,0.0004,4]
[310998376,1704846645118,-255.0,0.0004,12]
[310998377,1704846645127,-255.0,0.0004,12]
[310998378,1704846645137,-1367.9443539,0.0004,7]